[Event "84th Georgian Championship 2025"]
[Site "Tbilisi"]
[Date "2025.02.09"]
[Round "6.3"]
[White "Kacharava, Nikolozi"]
[Black "Sanikidze, Tornike"]
[Result "1-0"]
[Annotator "TA"]
[ECO "C10"]
[WhiteElo "2524"]
[BlackElo "2432"]
[PlyCount "65"]
[EventDate "2025.02.03"]
[EventType "tourn"]
[EventCountry "GEO"]
[SourceTitle "playchess.com"]
[Source "ChessBase"]
[SourceQuality "1"]
[TimeControl "40/5400+30:1800+30"]

{[%evp 16,65,26,16,50,45,74,76,157,132,141,133,206,118,277,268,291,268,317,286,380,325,295,297,302,299,544,543,529,495,597,592,681,666,596,480,708,689,743,532,799,536,2926,2872,1879,1281,29991,29992,29992,29993,29996,29997]} 1. e4 {[%emt 0:00:05]} e6 {[%emt 0:00:18]} 2. d4 {[%emt 0:00:26]} d5 {[%emt 0:00:08]} 3. Nc3 {[%emt 0:00:17]} Nf6 {[%emt 0:00:24]} 4. Bg5 {[%emt 0:00:31]} dxe4 {[%emt 0:02:18]} 5. Nxe4 {[%emt 0:00:11]} Nbd7 {[%emt 0:00:06]} 6. Nf3 {[%emt 0:01:31]} h6 {[%emt 0:05:36]} 7. Nxf6+ {[%emt 0:02:25]} Nxf6 {[%emt 0:00:11]} 8. Be3 $1 {[%emt 0:03:34][%mdl 4] is now more promising than 8.Bh4.} Be7 {[%emt 0:05:59]} 9. Bd3 {[%emt 0:02:42]} O-O {[%emt 0:06:12] C10: French with 3 Nc3: Unusual Black 3rd moves and 3...dxe4.} 10. Qd2 {[%emt 0:16:01][%cal Oe3h6]} Re8 $146 {[%emt 0:14:53]} (10... Nd5 11. h4 Nxe3 12. fxe3 c5 13. O-O-O b5 14. Be4 Rb8 15. g4 f5 16. gxf5 exf5 17. Bc6 {0-1 Rohit,S (2359)-Manish,A (2307) Vojvodina op 14th 2024 (4)}) 11. O-O-O {[%emt 0:05:04]} Bf8 {[%emt 0:06:09]} (11... b6 $142) 12. Ne5 $16 {[%emt 0:03:59]} Nd5 {[%emt 0:09:18]} 13. g4 {[%emt 1:00:14] White is more active.} c5 {[%emt 0:15:56] [#]} (13... Bd6 $16) 14. h4 {[%emt 0:00:00]} (14. dxc5 $6 Qc7 15. Bd4 f6 $14) (14. g5 $1 $18 {[%cal Rg5h6]}) 14... Nxe3 $2 {[%emt 0:25:19]} (14... Qc7 $16 {was necessary.}) 15. fxe3 $18 {[%emt 0:00:00][%cal Og4g5,Bf2e3,Be3d4,Bd4e5][%mdl 32]} f6 {[%emt 0:02:06]} 16. Ng6 {[%emt 0:00:00][%cal Og4g5] g5! would now be deadly.} cxd4 {[%emt 0:00:11]} 17. exd4 {[%emt 0:00:00]} Qd5 {[%emt 0:03:06]} 18. Kb1 {[%emt 0:00:00]} e5 {[%emt 0:00:01]} 19. dxe5 {[%emt 0:00:00]} Be6 {[%emt 0:00:41]} 20. c4 {[%emt 0:00:00]} Qf3 {[%emt 0:00:00]} (20... Qd7 21. exf6 gxf6 22. Nxf8 Rxf8) 21. Rhf1 {[%emt 0:00:00]} Qg3 {[%emt 0:01:07]} 22. Rg1 {[%emt 0:00:00]} Qf3 {[%emt 0:00:01]} 23. Rdf1 {[%emt 0:00:00]} Bb4 {[%emt 0:00:00] Strongly threatening ...Qxf1+.} 24. Qc2 {[%emt 0:00:00]} (24. Qxb4 $2 {is the wrong capture.} Qxd3+ 25. Ka1 Qxg6 $19) 24... Qe3 {[%emt 0:00:01]} 25. exf6 {[%emt 0:00:00]} Rad8 {[%emt 0:00:01]} (25... Qd2 $142 26. Qxd2 Bxd2) 26. Nf4 {[%emt 0:00:00] Bh7+ would kill now.} gxf6 {[%emt 0:01:59]} 27. g5 {[%emt 0:00:15]} fxg5 {[%emt 0:01:18]} 28. hxg5 {[%emt 0:00:11][%cal Bh4g5,Bg5g6,Bg6g7][%mdl 32]} h5 {[%emt 0:00:03]} 29. Bh7+ {[%emt 0:01:30]} Kh8 {[%emt 0:00:01][%cal Bg8h8,Bh8g7,Bg7h6,Bh6h5][%mdl 32]} 30. g6 {[%emt 0:00:25][%cal Rg6g7]} ({Less strong is} 30. Nxh5 Rd2 $18) 30... Kg7 {[%emt 0:01:22]} 31. Nxh5+ {[%emt 0:00:36] White mates.} Kh6 {[%emt 0:00:00] [#]} 32. g7 $1 {[%emt 0:00:59][%csl Gg1,Gh7][%cal Rc2g6]} Kxh5 {[%emt 0:01:00] [#]} (32... Rd3 33. Nf6) 33. Rf5+ $1 {[%emt 0:00:31][%mdl 512] White took control after the opening.   Weighted Error Value: White=0.57/Black=1.01  Mistake:       	White=1     	Black=4      Inaccurate:     	---       	Black=3      OK:         	White=7     	Black=6      Best:        	White=4     	Black=1} 1-0

[Event "84th Georgian Championship 2025"]
[Site "Tbilisi"]
[Date "2025.02.09"]
[Round "6.4"]
[White "Gagunashvili, Merab"]
[Black "Tutisani, Noe"]
[Result "1-0"]
[Annotator "TA"]
[ECO "B13"]
[WhiteElo "2541"]
[BlackElo "2439"]
[PlyCount "123"]
[EventDate "2025.02.03"]
[EventType "tourn"]
[EventCountry "GEO"]
[SourceTitle "playchess.com"]
[Source "ChessBase"]
[SourceQuality "1"]
[TimeControl "40/5400+30:1800+30"]

{[%evp 12,120,22,31,31,29,37,12,218,147,145,162,158,155,141,96,135,118,251,254,270,268,273,238,254,266,318,316,297,278,290,285,286,308,345,285,279,281,306,296,337,173,168,150,147,78,18,13,141,125,124,124,128,132,135,141,142,134,150,139,255,139,138,122,206,208,207,207,212,113,196,202,200,208,202,220,498,511,496,439,436,370,734,697,642,529,525,453,482,467,531,528,581,537,535,545,637,634,29974,29975,29974,29976,29975,29976,29976,29977,29979,29980,29984,29985,29985]} 1. d4 {[%emt 0:00:08]} d5 {[%emt 0:00:10]} 2. Nf3 {[%emt 0:00:53]} Nf6 {[%emt 0:00:08]} 3. Bf4 {[%emt 0:00:51]} c5 {[%emt 0:00:22]} 4. e3 {[%emt 0:00:09]} Nc6 {[%emt 0:00:06]} 5. Nbd2 {[%emt 0:03:51]} cxd4 {[%emt 0:05:37]} 6. exd4 {[%emt 0:00:05]} Bg4 {[%emt 0:00:17]} 7. c3 {[%emt 0:01:12]} e6 {[%emt 0:03:31] B13: Caro-Kann: Exchange Variation and Panov-Botvinnik Attack.} 8. Qb3 {[%emt 0:01:01]} Qc8 {[%emt 0:05:26]} 9. Ne5 {[%emt 0:04:25]} Bd6 $2 {[%emt 0:01:47]} (9... Bf5 $11 {and Black has nothing to worry.}) 10. f3 $146 {[%emt 0:20:49]} (10. h3 Bf5 11. g4 Bxg4 12. hxg4 Nxg4 13. Ndf3 Qc7 14. Bb5 f6 15. Nxg4 Bxf4 16. Qc2 {1-0 Quast,M (2284)-Mostbauer,F (2308) Oberliga Bayern 2122 2021 (6.3)}) 10... Bh5 {[%emt 0:04:36]} 11. g4 {[%emt 0:00:22] White is more active.} Qc7 {[%emt 0:00:23][%cal Rc6e5]} 12. gxh5 {[%emt 0:01:48]} Nxh5 {[%emt 0:03:11]} 13. Nxc6 {[%emt 0:01:30]} Bxf4 {[%emt 0:00:55]} 14. Nb4 {[%emt 0:00:10]} Bxd2+ {[%emt 0:02:13]} (14... O-O $16) 15. Kxd2 $18 {[%emt 0:00:15]} Qf4+ {[%emt 0:00:03]} 16. Kc2 {[%emt 0:04:06]} O-O {[%emt 0:00:54]} 17. Re1 {[%emt 0:03:25]} Qh4 {[%emt 0:09:12]} 18. Be2 {[%emt 0:03:53]} a5 {[%emt 0:11:07][%cal Ba7a5,Ba5a4][%mdl 32]} 19. Nd3 {[%emt 0:00:09]} a4 {[%emt 0:00:12]} 20. Qa3 {[%emt 0:08:22]} Rfc8 {[%emt 0:01:24]} 21. Kb1 {[%emt 0:00:06]} b5 {[%emt 0:00:38]} 22. Ne5 {[%emt 0:02:04]} Rab8 {[%emt 0:07:39]} 23. Qb4 {[%emt 0:02:49]} Qd8 {[%emt 0:00:10]} 24. Nd3 {[%emt 0:07:53]} (24. Bxb5 a3 25. Rhg1 (25. bxa3 Rxb5 26. Qxb5 Rb8 $11) (25. Nc6 $2 Rxc6 26. Bxc6 Rxb4 $19) 25... Nf4 $18) 24... Nf6 {[%emt 0:08:33]} 25. Nc5 {[%emt 0:00:23]} Ne8 {[%emt 0:00:24]} 26. b3 {[%emt 0:03:07]} (26. Bxb5 Nd6 $11) (26. h4 $142) 26... Nd6 {[%emt 0:01:27]} 27. Qa3 {[%emt 0:06:28]} (27. bxa4 $2 bxa4 28. a3 Rxb4+ 29. axb4 Qg5 $19) 27... axb3 {[%emt 0:02:43]} 28. axb3 {[%emt 0:00:34]} (28. Qxb3 $142 Nc4 29. Ka1) 28... Ra8 $16 {[%emt 0:03:00]} 29. Qb2 {[%emt 0:01:39] and Nd3 should not be overlooked} Ra7 {[%emt 0:05:26]} (29... Nc4 $1 $11 30. Bxc4 (30. bxc4 bxc4 31. Kc2 Rcb8 $11) 30... bxc4) 30. Kc2 {[%emt 0:04:17]} Qg5 {[%emt 0:00:07]} 31. Ra1 $1 {[%emt 0:01:07]} Qg6+ {[%emt 0:03:45]} 32. Kc1 $1 {[%emt 0:01:29]} Rxa1+ {[%emt 0:06:55]} 33. Qxa1 {[%emt 0:00:04]} e5 {[%emt 0:01:27]} 34. Rd1 {[%emt 0:08:29][%cal Od4e5]} Qg5+ {[%emt 0:02:16]} 35. Rd2 {[%emt 0:01:29]} Qe3 {[%emt 0:00:36]} (35... Qg1+ $16 36. Bd1 (36. Kb2 Qxh2 37. dxe5 Qxe5 $16) 36... Qe3) 36. Kc2 {[%emt 0:02:29]} (36. dxe5 $18 Rxc5 37. exd6 Rxc3+ 38. Kb1 Rxb3+ 39. Kc2) 36... exd4 {[%emt 0:04:07]} 37. cxd4 {[%emt 0:00:04]} b4 {[%emt 0:00:04]} (37... g6 $16 {might work better.} 38. Bd3 b4) 38. Bd3 $18 {[%emt 0:04:23]} g6 {[%emt 0:00:03] [#]} 39. Re2 $1 {[%emt 0:00:33]} Qxf3 {[%emt 0:00:54] [#]} 40. Qa5 {[%emt 0:00:00]} ({White should try} 40. Qe1 $1 $18) 40... Nf5 {[%emt 0:00:00]} (40... Ne4 $16) 41. Qxb4 {[%emt 0:02:23]} Qg4 {[%emt 0:07:37]} 42. Kc3 {[%emt 0:02:18]} Kg7 {[%emt 0:09:23]} 43. Rd2 {[%emt 0:09:21][%cal Be2d2,Bd2d3,Bd3f3][%mdl 32]} ({Not} 43. Bxf5 $2 Qxe2 44. Qb7 Qe1+ 45. Kb2 Qf2+ 46. Ka3 Qxf5 $19) 43... Ne3 $2 {[%emt 0:06:33]} (43... Nd6 44. Kb2 Qf4) 44. Qb7 {[%emt 0:01:18]} h5 {[%emt 0:01:34]} 45. Be2 {[%emt 0:06:50]} Qf5 {[%emt 0:00:47]} 46. Rd3 {[%emt 0:01:02]} Ng4 {[%emt 0:01:02]} (46... Re8 47. Qd7 Qxd7 48. Nxd7 Re7) 47. Rf3 {[%emt 0:02:13]} Rxc5+ {[%emt 0:00:04]} 48. Kb4 {[%emt 0:03:42][%cal Of3f5]} Rc4+ {[%emt 0:00:03]} 49. Ka3 {[%emt 0:01:44]} ({Less strong is} 49. bxc4 Qb1+ 50. Rb3 Qe1+ 51. Kb5 Qxe2 $16) 49... Qe6 {[%emt 0:00:27]} 50. bxc4 {[%emt 0:00:27]} (50. Bxc4 dxc4 51. d5 Qd6+ 52. Ka4 Ne5 $16) 50... dxc4 {[%emt 0:00:04][%cal Og4h2] [#]} 51. Qc7 {[%emt 0:02:01]} Qd5 {[%emt 0:05:39]} (51... Ne3 52. h3) 52. Qxc4 {[%emt 0:00:26]} Qa8+ {[%emt 0:00:18]} 53. Kb3 {[%emt 0:00:22]} Qb7+ {[%emt 0:00:05]} 54. Kc3 {[%emt 0:00:32]} Qe7 {[%emt 0:00:02] [#]} 55. Rxf7+ $3 {[%emt 0:01:59][%mdl 512] ?ev?.} Qxf7 {[%emt 0:00:04]} 56. Qxf7+ {[%emt 0:00:04]} Kxf7 {[%emt 0:00:03]} 57. Bxg4 {[%emt 0:00:04]} hxg4 {[%emt 0:00:03] KPP-KPP} 58. Kc4 {[%emt 0:00:06]} Ke6 {[%emt 0:01:41]} 59. Kc5 {[%emt 0:00:06]} g5 {[%emt 0:00:03]} 60. Kc6 {[%emt 0:00:14]} Ke7 {[%emt 0:00:03]} 61. d5 {[%emt 0:00:14]} Kd8 {[%emt 0:00:05]} 62. Kd6 {[%emt 0:00:15] Weighted Error Value: White=0.24 (precise) /Black=0.52  Loses game:     	---       	Black=1      Mistake:       	White=4     	Black=7      Inaccurate:     	White=2     	Black=2      OK:         	White=17    	Black=17     Best:        	White=5     	Black=1      Strong:       	White=2     	---} 1-0

[Event "84th Georgian Championship 2025"]
[Site "Tbilisi"]
[Date "2025.02.10"]
[Round "7.1"]
[White "Pantsulaia, Levan"]
[Black "Gagunashvili, Merab"]
[Result "1/2-1/2"]
[Annotator "TA"]
[ECO "D14"]
[WhiteElo "2522"]
[BlackElo "2541"]
[PlyCount "27"]
[EventDate "2025.02.03"]
[EventType "tourn"]
[EventCountry "GEO"]
[SourceTitle "playchess.com"]
[Source "ChessBase"]
[SourceQuality "1"]
[TimeControl "40/5400+30:1800+30"]

{[%evp 17,22,0,0,0,0,0,7]} 1. d4 {[%emt 0:00:04]} d5 {[%emt 0:00:13]} 2. c4 {[%emt 0:00:08]} c6 {[%emt 0:00:04]} 3. cxd5 {[%emt 0:00:06]} cxd5 {[%emt 0:00:04]} 4. Nc3 {[%emt 0:00:04]} Nf6 {[%emt 0:00:13]} 5. Nf3 {[%emt 0:00:08]} Nc6 {[%emt 0:00:05]} 6. Bf4 {[%emt 0:00:07]} Bf5 {[%emt 0:00:07]} 7. e3 {[%emt 0:00:06]} e6 {[%emt 0:00:07]} 8. Bd3 {[%emt 0:00:03]} Bxd3 {[%emt 0:00:07]} 9. Qxd3 {[%emt 0:00:03]} Bd6 {[%emt 0:00:07] The position is equal.} 10. Bxd6 {[%emt 0:00:03] D14: Slav Defence: Exchange variation with ...Bf5.} Qxd6 {[%emt 0:00:06]} 11. O-O {[%emt 0:00:03]} O-O {[%emt 0:00:40] Not much happened in this game.   OK:         	White=1     	Black=1} 12. Rac1 $146 Rac8 13. h3 h6 14. a3 {½-½ Abasov,N (2641)-Mamedov,R (2651) Gashimov Memorial Rapid 9th 2023 (8)} 1/2-1/2

[Event "84th Georgian Championship 2025"]
[Site "Tbilisi"]
[Date "2025.02.10"]
[Round "7.3"]
[White "Tutisani, Noe"]
[Black "Kacharava, Nikolozi"]
[Result "1-0"]
[Annotator "RC"]
[ECO "B30"]
[WhiteElo "2439"]
[BlackElo "2524"]
[PlyCount "107"]
[EventDate "2025.02.03"]
[EventType "tourn"]
[EventCountry "GEO"]
[SourceTitle "playchess.com"]
[Source "ChessBase"]
[SourceQuality "1"]
[TimeControl "40/5400+30:1800+30"]

1. e4 {[%emt 0:03:32]} c5 {[%emt 0:00:18]} 2. Nf3 {[%emt 0:00:05]} Nc6 {[%emt 0:00:12]} 3. Bc4 {[%emt 0:00:04]} e6 {[%emt 0:04:49]} 4. O-O {[%emt 0:02:36]} Nf6 {[%emt 0:01:16]} 5. Re1 {[%emt 0:00:29]} Nxe4 {[%emt 0:05:09]} 6. Rxe4 {[%emt 0:00:12]} d5 {[%emt 0:00:03]} 7. Bxd5 {[%emt 0:00:04]} Qxd5 {[%emt 0:00:04]} 8. Nc3 {[%emt 0:00:02]} Qd8 {[%emt 0:01:13]} 9. d4 {[%emt 0:02:10]} Be7 {[%emt 0:07:03]} 10. Bf4 {[%emt 0:01:35]} O-O {[%emt 0:01:59]} 11. d5 {[%emt 0:00:16]} Nb4 {[%emt 0:05:30]} 12. d6 {[%emt 0:05:45]} Bf6 {[%emt 0:00:10]} 13. Ne5 {[%emt 0:00:05]} b6 {[%emt 0:12:13]} 14. a3 {[%emt 0:12:39]} Bxe5 {[%emt 0:01:13]} 15. Rxe5 {[%emt 0:04:01]} Nc6 {[%emt 0:00:51]} 16. Rh5 {[%emt 0:01:02]} Bb7 {[%emt 0:10:48]} 17. Qd3 {[%emt 0:07:53]} g6 {[%emt 0:03:35]} 18. Bh6 {[%emt 0:14:52]} f5 {[%emt 0:07:09]} 19. Bxf8 {[%emt 0:02:04]} gxh5 {[%emt 0:36:25]} 20. Bh6 {[%emt 0:00:40]} Qf6 {[%emt 0:00:00]} 21. Qg3+ {[%emt 0:00:47]} Qg6 {[%emt 0:00:00]} 22. Bg5 {[%emt 0:05:41]} e5 {[%emt 0:00:00]} 23. Bh4 {[%emt 0:04:10]} Nb8 {[%emt 0:00:00]} 24. Nb5 {[%emt 0:04:28]} Nd7 {[%emt 0:00:00]} 25. Nc7 {[%emt 0:01:32]} Rc8 {[%emt 0:00:00]} 26. b4 {[%emt 0:00:04]} Kf7 {[%emt 0:00:00]} 27. Qxg6+ {[%emt 0:01:09]} hxg6 {[%emt 0:00:00]} 28. b5 {[%emt 0:00:12]} Rg8 {[%emt 0:00:00]} 29. Bg5 {[%emt 0:00:03]} Be4 {[%emt 0:01:33]} 30. c3 {[%emt 0:01:09]} Nf6 {[%emt 0:01:19]} 31. a4 {[%emt 0:02:38]} Rd8 {[%emt 0:00:36]} 32. f3 {[%emt 0:00:48]} Bd3 {[%emt 0:02:20]} 33. Nd5 {[%emt 0:01:14]} Rxd6 {[%emt 0:00:38]} 34. Nxf6 {[%emt 0:23:29]} Rxf6 {[%emt 0:00:17]} 35. Bxf6 {[%emt 0:00:00]} Kxf6 {[%emt 0:00:02]} 36. Kf2 {[%emt 0:00:00]} f4 {[%emt 0:00:58]} 37. Rd1 {[%emt 0:00:00]} c4 {[%emt 0:00:43]} 38. Ke1 {[%emt 0:00:00]} Ke6 {[%emt 0:00:25]} 39. Kd2 {[%emt 0:00:00]} Kd5 {[%emt 0:00:32]} 40. g3 {[%emt 0:00:00]} Kd6 {[%emt 0:00:00]} 41. gxf4 {[%emt 0:00:00]} exf4 {[%emt 0:00:37]} 42. Re1 {[%emt 0:00:00]} Kd7 {[%emt 0:08:21]} 43. h4 {[%emt 0:00:00]} Bf5 {[%emt 0:01:22]} 44. Re5 {[%emt 0:00:00]} Bb1 {[%emt 0:01:55]} 45. Rd5+ {[%emt 0:00:00]} Ke6 {[%emt 0:04:13]} 46. Rd8 {[%emt 0:00:00]} g5 {[%emt 0:01:57]} 47. hxg5 {[%emt 0:00:00]} Kf5 {[%emt 0:00:20]} 48. Rg8 {[%emt 0:00:00]} Bd3 {[%emt 0:01:28]} 49. g6 {[%emt 0:00:00]} Kf6 {[%emt 0:00:21]} 50. g7 {[%emt 0:00:00]} Bg6 {[%emt 0:00:12]} 51. a5 {[%emt 0:00:00]} h4 {[%emt 0:00:45]} 52. Ra8 {[%emt 0:00:00]} Kxg7 {[%emt 0:00:09]} 53. Rxa7+ {[%emt 0:00:00]} Kf6 {[%emt 0:00:14]} 54. axb6 {[%emt 0:00:00]} 1-0

[Event "84th Georgian Championship 2025"]
[Site "Tbilisi"]
[Date "2025.02.10"]
[Round "7.4"]
[White "Paichadze, Luka"]
[Black "Nigalidze, Gaioz"]
[Result "1-0"]
[Annotator "TA"]
[ECO "B31"]
[WhiteElo "2532"]
[BlackElo "2378"]
[PlyCount "73"]
[EventDate "2025.02.03"]
[EventType "tourn"]
[EventCountry "GEO"]
[SourceTitle "playchess.com"]
[Source "ChessBase"]
[SourceQuality "1"]
[TimeControl "40/5400+30:1800+30"]

{[%evp 10,72,8,8,35,29,28,26,31,0,0,0,6,0,0,0,7,0,0,0,7,0,8,14,77,79,120,126,118,121,132,130,158,169,334,330,326,296,320,252,299,303,310,311,303,302,313,308,270,275,304,313,296,362,320,326,843,822,846,850,1144,1078,1078,1066,29999]} 1. e4 {[%emt 0:00:06]} c5 {[%emt 0:00:21]} 2. Nf3 {[%emt 0:00:29]} Nc6 {[%emt 0:00:19]} 3. Bb5 {[%emt 0:00:48]} g6 {[%emt 0:00:34]} 4. Bxc6 {[%emt 0:00:14]} bxc6 {[%emt 0:00:11]} 5. O-O {[%emt 0:00:27]} Bg7 {[%emt 0:00:20]} 6. Re1 {[%emt 0:00:15]} Qc7 {[%emt 0:01:51] is now more promising than 6...Nh6. B31: Sicilian: 2...Nc6 3 Bb5 g6.} 7. c3 {[%emt 0:02:12][%cal Bc2c3,Bc3d4,Bd4e5][%mdl 32]} d6 {[%emt 0:01:22]} 8. h3 {[%emt 0:01:02]} Nf6 {[%emt 0:00:13] White has an edge.} 9. d4 {[%emt 0:00:07]} cxd4 {[%emt 0:00:30]} 10. cxd4 {[%emt 0:00:04]} O-O {[%emt 0:00:36]} 11. Nc3 {[%emt 0:04:27]} c5 {[%emt 0:11:48]} 12. e5 {[%emt 0:05:13]} dxe5 {[%emt 0:04:14]} 13. dxe5 {[%emt 0:00:09]} Rd8 {[%emt 0:03:50]} 14. Qa4 {[%emt 0:06:10]} Nh5 {[%emt 0:08:12]} 15. Be3 {[%emt 0:07:27]} Bb7 {[%emt 0:04:37][%cal Ob7f3]} 16. Qg4 {[%emt 0:09:49]} Bxf3 {[%emt 0:10:36]} (16... Bxe5 $6 17. Nxe5 Qxe5 18. Bg5 $16) (16... Bc6 $11 {keeps the balance.}) 17. Qxf3 $16 {[%emt 0:00:10] [#] White now steadily converts the win.} Qxe5 {[%emt 0:00:09]} 18. g4 {[%emt 0:01:54][%cal Bg2g4,Bg4g5][%mdl 32] White sacrificed a pawn Dodges Qf5} Nf6 {[%emt 0:00:17]} 19. Bf4 {[%emt 0:00:22][%mdl 1024] White has strong compensation.} Qd4 {[%emt 0:00:12]} 20. Rad1 $146 {[%emt 0:03:16] White has strong rooks and is better} (20. Rxe7 Qd3 21. Re3 Qa6 22. Rae1 Rac8 23. Be5 Qc6 24. Qxc6 Rxc6 25. Bg3 Kf8 26. Nb5 {0-1 Karolczuk,I (2345)-Janeczko,J (2202) Bydgoszcz op-A 2023 (7)}) 20... Qc4 {[%emt 0:00:41]} 21. b3 $36 {[%emt 0:00:09][%mdl 2048] White is on the roll. White is more active.} (21. Rxe7 $6 Rxd1+ 22. Nxd1 Qd5 $14) 21... Qb4 {[%emt 0:02:35]} (21... Qa6) 22. Bc7 $18 {[%emt 0:04:25]} (22. Rxe7 Rxd1+ 23. Nxd1 Re8 (23... Rd8 24. Ne3 $16) 24. Rxa7 h5 $16) 22... Re8 {[%emt 0:01:58]} 23. g5 {[%emt 0:00:32]} Nh5 {[%emt 0:00:15]} 24. Nd5 {[%emt 0:00:36]} Qh4 {[%emt 0:00:58]} 25. Nxe7+ {[%emt 0:07:12]} Kh8 {[%emt 0:00:12]} 26. Qg4 {[%emt 0:00:13]} ({Inferior is} 26. Qxf7 Rf8 (26... Qxh3 $2 {perishes.} 27. Nxg6+ hxg6 28. Rxe8+ $18) (26... Qxg5+ 27. Kf1 $15) 27. Qd5 Qxf2+ 28. Kh1 Nf4 (28... Qxa2 29. Rd2 $11) 29. Bxf4 Qxf4 $17) 26... Qxg4+ {[%emt 0:00:10]} 27. hxg4 {[%emt 0:00:04]} Bf8 {[%emt 0:00:08]} 28. Be5+ {[%emt 0:00:57]} Ng7 {[%emt 0:00:18] [#] Black is weak on the dark squares} 29. Nd5 {[%emt 0:00:14]} ({Weaker is} 29. Bf6 Bxe7 30. Bxe7 (30. Rxe7 Rxe7 31. Bxe7 Ne6 $16) 30... Ne6 31. Bf6+ Kg8 $16) 29... Rac8 {[%emt 0:01:59]} 30. f4 {[%emt 0:00:55][%cal Bf2f4,Bf4f5][%mdl 32]} Re6 {[%emt 0:01:03]} 31. Nf6 {[%emt 0:03:11]} Be7 {[%emt 0:04:26]} 32. Rd7 {[%emt 0:00:28] and Nd5 would now be decisive} a6 $2 {[%emt 0:02:07]} (32... Bxf6 33. gxf6 Ne8) 33. Nd5 {[%emt 0:00:36]} Bf8 {[%emt 0:01:01]} 34. Rxf7 {[%emt 0:00:41]} Rce8 {[%emt 0:00:30]} 35. f5 {[%emt 0:02:29]} Rxe5 {[%emt 0:00:14]} 36. Rxe5 {[%emt 0:00:07]} Rxe5 {[%emt 0:00:03]} 37. Rxf8# {[%emt 0:00:07] Weighted Error Value: White=0.04 (flawless) /Black=0.64  Mistake:       	---       	Black=3      Inaccurate:     	---       	Black=1      OK:         	White=9     	Black=15     Best:        	White=6     	Black=4} 1-0